Workbook

Sheet COMECE AQUI - LEIA ATENTAMENTE
B1: CALCULADORA BACKUP FOX ESS
B5: TERMOS DE USO E RECOMENDAÇÕES | M5: OS CÁLCULOS DESTE ARQUIVO NÃO CONSIDERAM:
B6: A Calculadora de Backup da Fox ESS foi desenvolvida para auxiliar, de forma educativa, no pré-dimensionamento de soluções de backup de energia. Ressaltamos que os resultados gerados são apenas estimativas e não substituem um projeto técnico profissional. A Fox ESS não se responsabiliza por eventuais inadequações decorrentes do uso desta ferramenta. Para garantir que o sistema atenda plenamente às suas demandas, é indispensável a análise de um engenheiro ou especialista qualificado. Ter um sistema híbrido bem dimensionado é essencial para manter a continuidade de energia em aplicações residenciais, comerciais e industriais. A autonomia máxima considerada nesta ferramenta é de 24h. | M6: - Alimentação das cargas por outras fontes (Ex. Fotovoltaico/Solar, Gerador Diesel, Etc); - Coeficiente de simultaniedade das cargas (A planilha considera tudo ligado ao mesmo tempo); - Eficiência de inversores e baterias; - Corrente Recomendada e tempo de carregamento das baterias.

Sheet INSTRUÇÕES DE USO
B1: CALCULADORA BACKUP FOX ESS
B5: INSTRUÇÕES
B6: Para o uso desta planilha, é extremamente importante que seja feito um levantamento prévio das cargas que serão alimentadas pelo sistema. 1 - A planilha é previamente preenchida com dados de exemplo que devem ser alterados de acordo com os dados do cliente. 2 - Na aba de Dimensionamento, selecione dentre as opções disponíveis, o tempo de autonomia desejado pelo cliente 3 - Selecione o Tipo de Rede do cliente dentre as opções disponíveis. 4 - Preencha a Lista de Equipamentos nos campos editáveis (em roxo), de acordo com o levantamento feito. Ajuste os nomes dos aparelhos, potências, quantidades, o tempo de uso, o Fator de Potênica (FP - cargas 100% reativas como Notebook e Roteador tem FP = 1) e a Corrente de Pico (Ip/In) conforme necessário. NOTA1: As células que ficarem amarelas e/ou vermelhas, servem como um mero indicativo de potência mais alta (acima de 1kW) ou consumo alto. NOTA2: Por padrão a planilha considera DoD (Profundidade de Descarga) das baterias de 90%, sem perdas. 5 - Após todas as informações preenchidas, a planilha apresenta na aba RESULTADO, o modelo de inversor e a quantidade sugerida, assim como a quantidade de baterias recomendadas por inversor. Agora é só conferir o kit com o distribuidor de sua preferência e ser feliz com a Fox ESS! LEMBRE-SE: Essa calculadora foi desenvolvida para auxiliar no pré-dimensionamento de soluções de backup de energia e ressaltamos que os resultados gerados são apenas estimativas e não substituem um projeto técnico profissional. Para garantir que o sistema atenda plenamente às suas demandas, é indispensável a análise de um engenheiro ou especialista qualificado. A Fox-ESS não se responsabiliza por eventuais inadequações decorrentes do uso desta ferramenta.

Sheet DIMENSIONAMENTO
B1: CALCULADORA BACKUP FOX ESS
C5: Campos Editáveis
B6: Autonomia ( Horas) | C6: 2
B7: Tipo de rede do Cliente: | C7: Bifásica (127/220 V)
B8: Aparelho | C8: Potência Nominal [W] | D8: Tensão Nominal [V] | E8: Quantidade | F8: Tempo Ligado [h] | G8: FP | H8: Ip/In | I8: Potência Total [W] | J8: Potência de Pico [kW] | K8: Consumo diário [Wh]
A9: 1 | B9: Laptop | C9: 100 | D9: 220 | E9: 2 | F9: 24 | G9: 1.0 | H9: 1.0 | I9: =IFERROR(IF(Equipmentos[[#This Row],[Quantidade]]="","",Equipmentos[[#This Row],[Potência Nominal '[W']]]*Equipmentos[[#This Row],[Quantidade]]/Equipmentos[[#This Row],[FP]]),"") -> 200 | J9: =Equipmentos[[#This Row],[Potência Total '[W']]]*Equipmentos[[#This Row],[Ip/In]] -> 200 | K9: =IFERROR(IF(Equipmentos[[#This Row],[Quantidade]]="","",Equipmentos[[#This Row],[Potência Total '[W']]]*Equipmentos[[#This Row],[Tempo Ligado '[h']]]),"") -> 4800
A10: 2 | B10: Modem / Wifi / Internet | C10: 20 | D10: 220 | E10: 1 | F10: 24 | G10: 1.0 | H10: 1.0 | I10: =IFERROR(IF(Equipmentos[[#This Row],[Quantidade]]="","",Equipmentos[[#This Row],[Potência Nominal '[W']]]*Equipmentos[[#This Row],[Quantidade]]/Equipmentos[[#This Row],[FP]]),"") -> 20 | J10: =Equipmentos[[#This Row],[Potência Total '[W']]]*Equipmentos[[#This Row],[Ip/In]] -> 20 | K10: =IFERROR(IF(Equipmentos[[#This Row],[Quantidade]]="","",Equipmentos[[#This Row],[Potência Total '[W']]]*Equipmentos[[#This Row],[Tempo Ligado '[h']]]),"") -> 480
A11: 3 | B11: Impressora | C11: 50 | D11: 220 | E11: 1 | F11: 0 | G11: 1.0 | H11: 1.0 | I11: =IFERROR(IF(Equipmentos[[#This Row],[Quantidade]]="","",Equipmentos[[#This Row],[Potência Nominal '[W']]]*Equipmentos[[#This Row],[Quantidade]]/Equipmentos[[#This Row],[FP]]),"") -> 50 | J11: =Equipmentos[[#This Row],[Potência Total '[W']]]*Equipmentos[[#This Row],[Ip/In]] -> 50 | K11: =IFERROR(IF(Equipmentos[[#This Row],[Quantidade]]="","",Equipmentos[[#This Row],[Potência Total '[W']]]*Equipmentos[[#This Row],[Tempo Ligado '[h']]]),"") -> 0
A12: 4 | B12: Luzes | C12: 15 | D12: 220 | E12: 10 | F12: 6 | G12: 1.0 | H12: 1.0 | I12: =IFERROR(IF(Equipmentos[[#This Row],[Quantidade]]="","",Equipmentos[[#This Row],[Potência Nominal '[W']]]*Equipmentos[[#This Row],[Quantidade]]/Equipmentos[[#This Row],[FP]]),"") -> 150 | J12: =Equipmentos[[#This Row],[Potência Total '[W']]]*Equipmentos[[#This Row],[Ip/In]] -> 150 | K12: =IFERROR(IF(Equipmentos[[#This Row],[Quantidade]]="","",Equipmentos[[#This Row],[Potência Total '[W']]]*Equipmentos[[#This Row],[Tempo Ligado '[h']]]),"") -> 900
A13: 5 | B13: TV | C13: 68 | D13: 220 | E13: 2 | F13: 4 | G13: 1.0 | H13: 1.0 | I13: =IFERROR(IF(Equipmentos[[#This Row],[Quantidade]]="","",Equipmentos[[#This Row],[Potência Nominal '[W']]]*Equipmentos[[#This Row],[Quantidade]]/Equipmentos[[#This Row],[FP]]),"") -> 136 | J13: =Equipmentos[[#This Row],[Potência Total '[W']]]*Equipmentos[[#This Row],[Ip/In]] -> 136 | K13: =IFERROR(IF(Equipmentos[[#This Row],[Quantidade]]="","",Equipmentos[[#This Row],[Potência Total '[W']]]*Equipmentos[[#This Row],[Tempo Ligado '[h']]]),"") -> 544
A14: 6 | B14: MicroOndas | C14: 800 | D14: 220 | E14: 1 | F14: 0 | G14: 1.0 | H14: 1.0 | I14: =IFERROR(IF(Equipmentos[[#This Row],[Quantidade]]="","",Equipmentos[[#This Row],[Potência Nominal '[W']]]*Equipmentos[[#This Row],[Quantidade]]/Equipmentos[[#This Row],[FP]]),"") -> 800 | J14: =Equipmentos[[#This Row],[Potência Total '[W']]]*Equipmentos[[#This Row],[Ip/In]] -> 800 | K14: =IFERROR(IF(Equipmentos[[#This Row],[Quantidade]]="","",Equipmentos[[#This Row],[Potência Total '[W']]]*Equipmentos[[#This Row],[Tempo Ligado '[h']]]),"") -> 0
A15: 7 | B15: Air Fryer | C15: 1500 | D15: 220 | E15: 0 | F15: 0 | G15: 1.0 | H15: 1.0 | I15: =IFERROR(IF(Equipmentos[[#This Row],[Quantidade]]="","",Equipmentos[[#This Row],[Potência Nominal '[W']]]*Equipmentos[[#This Row],[Quantidade]]/Equipmentos[[#This Row],[FP]]),"") -> 0 | J15: =Equipmentos[[#This Row],[Potência Total '[W']]]*Equipmentos[[#This Row],[Ip/In]] -> 0 | K15: =IFERROR(IF(Equipmentos[[#This Row],[Quantidade]]="","",Equipmentos[[#This Row],[Potência Total '[W']]]*Equipmentos[[#This Row],[Tempo Ligado '[h']]]),"") -> 0
A16: 8 | B16: Refrigerador | C16: 250 | D16: 220 | E16: 1 | F16: 24 | G16: 1.0 | H16: 1.0 | I16: =IFERROR(IF(Equipmentos[[#This Row],[Quantidade]]="","",Equipmentos[[#This Row],[Potência Nominal '[W']]]*Equipmentos[[#This Row],[Quantidade]]/Equipmentos[[#This Row],[FP]]),"") -> 250 | J16: =Equipmentos[[#This Row],[Potência Total '[W']]]*Equipmentos[[#This Row],[Ip/In]] -> 250 | K16: =IFERROR(IF(Equipmentos[[#This Row],[Quantidade]]="","",Equipmentos[[#This Row],[Potência Total '[W']]]*Equipmentos[[#This Row],[Tempo Ligado '[h']]]),"") -> 6000
A17: 9 | B17: Freezer | C17: 150 | D17: 220 | E17: 1 | F17: 24 | G17: 1.0 | H17: 1.0 | I17: =IFERROR(IF(Equipmentos[[#This Row],[Quantidade]]="","",Equipmentos[[#This Row],[Potência Nominal '[W']]]*Equipmentos[[#This Row],[Quantidade]]/Equipmentos[[#This Row],[FP]]),"") -> 150 | J17: =Equipmentos[[#This Row],[Potência Total '[W']]]*Equipmentos[[#This Row],[Ip/In]] -> 150 | K17: =IFERROR(IF(Equipmentos[[#This Row],[Quantidade]]="","",Equipmentos[[#This Row],[Potência Total '[W']]]*Equipmentos[[#This Row],[Tempo Ligado '[h']]]),"") -> 3600
A18: 10 | B18: Maquina Lavar | C18: 1500 | D18: 220 | E18: 1 | F18: 1 | G18: 1.0 | H18: 1.0 | I18: =IFERROR(IF(Equipmentos[[#This Row],[Quantidade]]="","",Equipmentos[[#This Row],[Potência Nominal '[W']]]*Equipmentos[[#This Row],[Quantidade]]/Equipmentos[[#This Row],[FP]]),"") -> 1500 | J18: =Equipmentos[[#This Row],[Potência Total '[W']]]*Equipmentos[[#This Row],[Ip/In]] -> 1500 | K18: =IFERROR(IF(Equipmentos[[#This Row],[Quantidade]]="","",Equipmentos[[#This Row],[Potência Total '[W']]]*Equipmentos[[#This Row],[Tempo Ligado '[h']]]),"") -> 1500
A19: 11 | B19: Chuveiro | C19: 7800 | D19: 220 | E19: 0 | F19: 0.5 | G19: 1.0 | H19: 1.0 | I19: =IFERROR(IF(Equipmentos[[#This Row],[Quantidade]]="","",Equipmentos[[#This Row],[Potência Nominal '[W']]]*Equipmentos[[#This Row],[Quantidade]]/Equipmentos[[#This Row],[FP]]),"") -> 0 | J19: =Equipmentos[[#This Row],[Potência Total '[W']]]*Equipmentos[[#This Row],[Ip/In]] -> 0 | K19: =IFERROR(IF(Equipmentos[[#This Row],[Quantidade]]="","",Equipmentos[[#This Row],[Potência Total '[W']]]*Equipmentos[[#This Row],[Tempo Ligado '[h']]]),"") -> 0
A20: 12 | B20: Ar Condicionado 9000 BTU | C20: 850 | D20: 220 | E20: 2 | F20: 12 | G20: 1.0 | H20: 1.0 | I20: =IFERROR(IF(Equipmentos[[#This Row],[Quantidade]]="","",Equipmentos[[#This Row],[Potência Nominal '[W']]]*Equipmentos[[#This Row],[Quantidade]]/Equipmentos[[#This Row],[FP]]),"") -> 1700 | J20: =Equipmentos[[#This Row],[Potência Total '[W']]]*Equipmentos[[#This Row],[Ip/In]] -> 1700 | K20: =IFERROR(IF(Equipmentos[[#This Row],[Quantidade]]="","",Equipmentos[[#This Row],[Potência Total '[W']]]*Equipmentos[[#This Row],[Tempo Ligado '[h']]]),"") -> 20400
A21: 13 | B21: Ar Condicionado 12000 BTU | C21: 1200 | D21: 220 | E21: 0 | F21: 4 | G21: 1.0 | H21: 1.0 | I21: =IFERROR(IF(Equipmentos[[#This Row],[Quantidade]]="","",Equipmentos[[#This Row],[Potência Nominal '[W']]]*Equipmentos[[#This Row],[Quantidade]]/Equipmentos[[#This Row],[FP]]),"") -> 0 | J21: =Equipmentos[[#This Row],[Potência Total '[W']]]*Equipmentos[[#This Row],[Ip/In]] -> 0 | K21: =IFERROR(IF(Equipmentos[[#This Row],[Quantidade]]="","",Equipmentos[[#This Row],[Potência Total '[W']]]*Equipmentos[[#This Row],[Tempo Ligado '[h']]]),"") -> 0
A22: 14 | B22: Aspirador de Pó | C22: 1400 | D22: 220 | E22: 0 | F22: 0 | G22: 1.0 | H22: 1.0 | I22: =IFERROR(IF(Equipmentos[[#This Row],[Quantidade]]="","",Equipmentos[[#This Row],[Potência Nominal '[W']]]*Equipmentos[[#This Row],[Quantidade]]/Equipmentos[[#This Row],[FP]]),"") -> 0 | J22: =Equipmentos[[#This Row],[Potência Total '[W']]]*Equipmentos[[#This Row],[Ip/In]] -> 0 | K22: =IFERROR(IF(Equipmentos[[#This Row],[Quantidade]]="","",Equipmentos[[#This Row],[Potência Total '[W']]]*Equipmentos[[#This Row],[Tempo Ligado '[h']]]),"") -> 0
A23: 15 | B23: Secador De cabelo | C23: 100 | D23: 220 | E23: 1 | F23: 0 | G23: 1.0 | H23: 1.0 | I23: =IFERROR(IF(Equipmentos[[#This Row],[Quantidade]]="","",Equipmentos[[#This Row],[Potência Nominal '[W']]]*Equipmentos[[#This Row],[Quantidade]]/Equipmentos[[#This Row],[FP]]),"") -> 100 | J23: =Equipmentos[[#This Row],[Potência Total '[W']]]*Equipmentos[[#This Row],[Ip/In]] -> 100 | K23: =IFERROR(IF(Equipmentos[[#This Row],[Quantidade]]="","",Equipmentos[[#This Row],[Potência Total '[W']]]*Equipmentos[[#This Row],[Tempo Ligado '[h']]]),"") -> 0
A24: 16 | B24: Outros | C24: 0 | D24: 220 | E24: 0 | F24: 0 | G24: 1.0 | H24: 1.0 | I24: =IFERROR(IF(Equipmentos[[#This Row],[Quantidade]]="","",Equipmentos[[#This Row],[Potência Nominal '[W']]]*Equipmentos[[#This Row],[Quantidade]]/Equipmentos[[#This Row],[FP]]),"") -> 0 | J24: =Equipmentos[[#This Row],[Potência Total '[W']]]*Equipmentos[[#This Row],[Ip/In]] -> 0 | K24: =IFERROR(IF(Equipmentos[[#This Row],[Quantidade]]="","",Equipmentos[[#This Row],[Potência Total '[W']]]*Equipmentos[[#This Row],[Tempo Ligado '[h']]]),"") -> 0
I26: =IF(E9="","",SUM(I9:I24)/1000) -> 5.06 | J26: =IF(F9="","",SUM(J9:J24)/1000) -> 5.06 | K26: =SUM(K9:K24)/1000 -> 38.22
I27: Potência Nominal Total [kW] | J27: Potência de Pico Total [kW] | K27: Consumo diário Total [kWh]

Sheet Dados (hidden)
B2: Tensão Nominal | D2: Fox ESS name | E2: Max Power EPS [W] | F2: Rated Voltage [V] | G2: Peak Power (60s) [W] | H2: Picture | I2: Datasheet | J2: Manual | L2: Qtd | M2: Capacity EP5 | N2: Power EP5 | O2: Peak Power EP5 | P2: Capacity EP11 | Q2: Power EP11 | R2: Peak Power EP11
B3: 380 | D3: H1-5.0-E-G2 | E3: 5000 | F3: 220 | G3: 5500 | I3: https://br.fox-ess.com/download/upfiles/BR-H1-G2-wl-Datasheet-V1.0-20250828.pdf | J3: https://br.fox-ess.com/download/upfiles/PT-H1-G2-WL-Manual-V1.0.0-20250814.pdf | M3: 5.18 | O3: =Table4[[#This Row],[Power EP5]]*2.41 -> 0.00 | P3: 10.36 | R3: =Table4[[#This Row],[Power EP11]]*2.41 -> 0.00
B4: 220 | D4: KH7.5 | E4: 7500 | F4: 220 | G4: 10000 | I4: https://br.fox-ess.com/download/upfiles/BR-KH-KA-Datasheet-V1.3-20250828.pdf | J4: https://br.fox-ess.com/download/upfiles/BR-KH-Manual-V1.0.0-20250401.pdf | L4: 1 | M4: =M$3*L4*0.9 -> 4.66 | N4: =M3 -> 5.18 | O4: =Table4[[#This Row],[Power EP5]]*2.41 -> 12.48 | P4: =$P$3*L4*0.9 -> 9.32 | Q4: =P3 -> 10.36 | R4: =Table4[[#This Row],[Power EP11]]*2.41 -> 24.97
B5: 127 | D5: KH10.5 | E5: 10500 | F5: 220 | G5: 15000 | I5: https://br.fox-ess.com/download/upfiles/BR-KH-KA-Datasheet-V1.3-20250828.pdf | J5: https://br.fox-ess.com/download/upfiles/BR-KH-Manual-V1.0.0-20250401.pdf | L5: 2 | M5: =$M$3*L5*0.9 -> 9.32 | N5: =ROUNDUP(Table4[[#This Row],[Qtd]]/4,0)*192*IF($N$34>1,50,27)/1000 -> 5.18 | O5: =Table4[[#This Row],[Power EP5]]*2.41 -> 12.49 | P5: 18.65 | Q5: =ROUNDUP(Table4[[#This Row],[Qtd]]/4,0)*384*IF($Q$34>1,50,27)/1000 -> 10.37 | R5: =Table4[[#This Row],[Power EP11]]*2.41 -> 24.99
D6: H1-5.7-US | E6: 5700 | F6: 127/220 | G6: 7695 | I6: https://br.fox-ess.com/download/upfiles/BR-US-Datasheet-V1.0-20250517.pdf | J6: https://br.fox-ess.com/download/upfiles/PT-US-User%20Manual-v1.2b-20250515.pdf | L6: 3 | M6: =$M$3*L6*0.9 -> 13.99 | N6: =ROUNDUP(Table4[[#This Row],[Qtd]]/4,0)*192*IF($N$34>1,50,27)/1000 -> 5.18 | O6: =Table4[[#This Row],[Power EP5]]*2.41 -> 12.49 | P6: 27.97 | Q6: =ROUNDUP(Table4[[#This Row],[Qtd]]/4,0)*384*IF($Q$34>1,50,27)/1000 -> 10.37 | R6: =Table4[[#This Row],[Power EP11]]*2.41 -> 24.99
B7: Rede | D7: H1-7.5-US | E7: 7500 | F7: 127/220 | G7: 10125 | I7: https://br.fox-ess.com/download/upfiles/BR-US-Datasheet-V1.0-20250517.pdf | J7: https://br.fox-ess.com/download/upfiles/PT-US-User%20Manual-v1.2b-20250515.pdf | L7: 4 | M7: =$M$3*L7*0.9 -> 18.65 | N7: =ROUNDUP(Table4[[#This Row],[Qtd]]/4,0)*192*IF($N$34>1,50,27)/1000 -> 5.18 | O7: =Table4[[#This Row],[Power EP5]]*2.41 -> 12.49 | P7: 37.30 | Q7: =ROUNDUP(Table4[[#This Row],[Qtd]]/4,0)*384*IF($Q$34>1,50,27)/1000 -> 10.37 | R7: =Table4[[#This Row],[Power EP11]]*2.41 -> 24.99
B8: Monofásica (220 V) | D8: H1-11.4-US | E8: 11400 | F8: 127/220 | G8: 15389 | I8: https://br.fox-ess.com/download/upfiles/BR-US-Datasheet-V1.0-20250517.pdf | J8: https://br.fox-ess.com/download/upfiles/PT-US-User%20Manual-v1.2b-20250515.pdf | L8: 5 | M8: =$M$3*L8*0.9 -> 23.31 | N8: =ROUNDUP(Table4[[#This Row],[Qtd]]/4,0)*192*IF($N$34>1,50,27)/1000 -> 10.37 | O8: =Table4[[#This Row],[Power EP5]]*2.41 -> 24.99 | P8: 46.62 | Q8: =ROUNDUP(Table4[[#This Row],[Qtd]]/4,0)*384*IF($Q$34>1,50,27)/1000 -> 20.74 | R8: =Table4[[#This Row],[Power EP11]]*2.41 -> 49.97
B9: Bifásica (127/220 V) | D9: H3-PRO-11.5 | E9: 11500 | F9: 220 | G9: 12600 | I9: https://br.fox-ess.com/download/upfiles/BR-H3-Pro-Datasheet-Low-Voltage-V1.7-20250828.pdf | J9: https://br.fox-ess.com/download/upfiles/BR-H3-Pro-Manual-V1.0.0.pdf | L9: 6 | M9: 27.97 | N9: =ROUNDUP(Table4[[#This Row],[Qtd]]/4,0)*192*IF($N$34>1,50,27)/1000 -> 10.37 | O9: =Table4[[#This Row],[Power EP5]]*2.41 -> 24.99 | P9: 55.94 | Q9: =ROUNDUP(Table4[[#This Row],[Qtd]]/4,0)*384*IF($Q$34>1,50,27)/1000 -> 20.74 | R9: =Table4[[#This Row],[Power EP11]]*2.41 -> 49.97
B10: Trifásica (220/380 V) | D10: H3-PRO-20.0 | E10: 20000 | F10: 380 | G10: 24000 | I10: https://br.fox-ess.com/download/upfiles/BR-H3-Pro-Datasheet-Low-Voltage-V1.7-20250828.pdf | J10: https://br.fox-ess.com/download/upfiles/BR-H3-Pro-Manual-V1.0.0.pdf | L10: 7 | M10: 32.63 | N10: =ROUNDUP(Table4[[#This Row],[Qtd]]/4,0)*192*IF($N$34>1,50,27)/1000 -> 10.37 | O10: =Table4[[#This Row],[Power EP5]]*2.41 -> 24.99 | P10: 65.27 | Q10: =ROUNDUP(Table4[[#This Row],[Qtd]]/4,0)*384*IF($Q$34>1,50,27)/1000 -> 20.74 | R10: =Table4[[#This Row],[Power EP11]]*2.41 -> 49.97
B11: Trifásica (127/220 V) | D11: H3-PRO-17.3 | E11: 17300 | F11: 220 | G11: 19000 | I11: https://br.fox-ess.com/download/upfiles/BR-H3-Pro-Datasheet-Low-Voltage-V1.7-20250828.pdf | J11: https://br.fox-ess.com/download/upfiles/BR-H3-Pro-Manual-V1.0.0.pdf | L11: 8 | M11: =$M$3*L11*0.9 -> 37.30 | N11: =ROUNDUP(Table4[[#This Row],[Qtd]]/4,0)*192*IF($N$34>1,50,27)/1000 -> 10.37 | O11: =Table4[[#This Row],[Power EP5]]*2.41 -> 24.99 | P11: 74.59 | Q11: =ROUNDUP(Table4[[#This Row],[Qtd]]/4,0)*384*IF($Q$34>1,50,27)/1000 -> 20.74 | R11: =Table4[[#This Row],[Power EP11]]*2.41 -> 49.97
D12: H3-PRO-30.0 | E12: 30000 | F12: 380 | G12: 36000 | I12: https://br.fox-ess.com/download/upfiles/BR-H3-Pro-Datasheet-Low-Voltage-V1.7-20250828.pdf | J12: https://br.fox-ess.com/download/upfiles/BR-H3-Pro-Manual-V1.0.0.pdf | L12: 9 | M12: =$M$3*L12*0.9 -> 41.96 | N12: =ROUNDUP(Table4[[#This Row],[Qtd]]/4,0)*192*IF($N$34>1,50,27)/1000 -> 15.55 | O12: =Table4[[#This Row],[Power EP5]]*2.41 -> 37.48 | P12: 83.92 | Q12: =ROUNDUP(Table4[[#This Row],[Qtd]]/4,0)*384*IF($Q$34>1,50,27)/1000 -> 31.10 | R12: =Table4[[#This Row],[Power EP11]]*2.41 -> 74.96
L13: 10 | M13: 46.62 | N13: =ROUNDUP(Table4[[#This Row],[Qtd]]/4,0)*192*IF($N$34>1,50,27)/1000 -> 15.55 | O13: =Table4[[#This Row],[Power EP5]]*2.41 -> 37.48 | P13: 93.24 | Q13: =ROUNDUP(Table4[[#This Row],[Qtd]]/4,0)*384*IF($Q$34>1,50,27)/1000 -> 31.10 | R13: =Table4[[#This Row],[Power EP11]]*2.41 -> 74.96
B14: Other Values | D14: Fox ESS name | E14: Especificação Tecnologia | F14: Tensão Nominal | G14: Capacidade Nominal em 25 °C | H14: Peso | I14: Coluna1 | J14: Picture | L14: 11 | M14: 51.28 | N14: =ROUNDUP(Table4[[#This Row],[Qtd]]/4,0)*192*IF($N$34>1,50,27)/1000 -> 15.55 | O14: =Table4[[#This Row],[Power EP5]]*2.41 -> 37.48 | P14: 102.56 | Q14: =ROUNDUP(Table4[[#This Row],[Qtd]]/4,0)*384*IF($Q$34>1,50,27)/1000 -> 31.10 | R14: =Table4[[#This Row],[Power EP11]]*2.41 -> 74.96
B15: 1000 | D15: EP5 | E15: LFP | F15: 192 | G15: 27 | H15: 50.5±2 | L15: 12 | M15: 55.94 | N15: =ROUNDUP(Table4[[#This Row],[Qtd]]/4,0)*192*IF($N$34>1,50,27)/1000 -> 15.55 | O15: =Table4[[#This Row],[Power EP5]]*2.41 -> 37.48 | P15: 111.89 | Q15: =ROUNDUP(Table4[[#This Row],[Qtd]]/4,0)*384*IF($Q$34>1,50,27)/1000 -> 31.10 | R15: =Table4[[#This Row],[Power EP11]]*2.41 -> 74.96
D16: EP11 | E16: LFP | F16: 384 | G16: 27 | H16: 99±2 | L16: 13 | M16: 60.61 | N16: =ROUNDUP(Table4[[#This Row],[Qtd]]/4,0)*192*IF($N$34>1,50,27)/1000 -> 20.74 | O16: =Table4[[#This Row],[Power EP5]]*2.41 -> 49.97 | P16: 121.21 | Q16: =ROUNDUP(Table4[[#This Row],[Qtd]]/4,0)*384*IF($Q$34>1,50,27)/1000 -> 41.47 | R16: =Table4[[#This Row],[Power EP11]]*2.41 -> 99.95
B17: 1 | D17: HV Junction-Box | E17: - | F17: - | G17: - | H17: - | I17: - | L17: 14 | M17: 65.27 | N17: =ROUNDUP(Table4[[#This Row],[Qtd]]/4,0)*192*IF($N$34>1,50,27)/1000 -> 20.74 | O17: =Table4[[#This Row],[Power EP5]]*2.41 -> 49.97 | P17: 130.54 | Q17: =ROUNDUP(Table4[[#This Row],[Qtd]]/4,0)*384*IF($Q$34>1,50,27)/1000 -> 41.47 | R17: =Table4[[#This Row],[Power EP11]]*2.41 -> 99.95
B18: 2 | D18: AI Link (A-1000) | E18: - | F18: - | G18: - | H18: - | I18: - | L18: 15 | M18: 69.93 | N18: =ROUNDUP(Table4[[#This Row],[Qtd]]/4,0)*192*IF($N$34>1,50,27)/1000 -> 20.74 | O18: =Table4[[#This Row],[Power EP5]]*2.41 -> 49.97 | P18: 139.86 | Q18: =ROUNDUP(Table4[[#This Row],[Qtd]]/4,0)*384*IF($Q$34>1,50,27)/1000 -> 41.47 | R18: =Table4[[#This Row],[Power EP11]]*2.41 -> 99.95
B19: 3 | D19: Quadro Baixa Tensão | L19: 16 | M19: 74.59 | N19: =ROUNDUP(Table4[[#This Row],[Qtd]]/4,0)*192*IF($N$34>1,50,27)/1000 -> 20.74 | O19: =Table4[[#This Row],[Power EP5]]*2.41 -> 49.97 | P19: 149.18 | Q19: =ROUNDUP(Table4[[#This Row],[Qtd]]/4,0)*384*IF($Q$34>1,50,27)/1000 -> 41.47 | R19: =Table4[[#This Row],[Power EP11]]*2.41 -> 99.95
B20: 4 | D20: Fox Hub G2 | L20: 17 | M20: 79.25 | N20: =ROUNDUP(Table4[[#This Row],[Qtd]]/4,0)*192*IF($N$34>1,50,27)/1000 -> 25.92 | O20: =Table4[[#This Row],[Power EP5]]*2.41 -> 62.47 | P20: 158.51 | Q20: =ROUNDUP(Table4[[#This Row],[Qtd]]/4,0)*384*IF($Q$34>1,50,27)/1000 -> 51.84 | R20: =Table4[[#This Row],[Power EP11]]*2.41 -> 124.93
L21: 18 | M21: =$M$3*L21*0.9 -> 83.92 | N21: =ROUNDUP(Table4[[#This Row],[Qtd]]/4,0)*192*IF($N$34>1,50,27)/1000 -> 25.92 | O21: =Table4[[#This Row],[Power EP5]]*2.41 -> 62.47 | P21: 167.83 | Q21: =ROUNDUP(Table4[[#This Row],[Qtd]]/4,0)*384*IF($Q$34>1,50,27)/1000 -> 51.84 | R21: =Table4[[#This Row],[Power EP11]]*2.41 -> 124.93
B22: Tempo de Autonomia | L22: 19 | M22: 88.58 | N22: =ROUNDUP(Table4[[#This Row],[Qtd]]/4,0)*192*IF($N$34>1,50,27)/1000 -> 25.92 | O22: =Table4[[#This Row],[Power EP5]]*2.41 -> 62.47 | P22: 177.16 | Q22: =ROUNDUP(Table4[[#This Row],[Qtd]]/4,0)*384*IF($Q$34>1,50,27)/1000 -> 51.84 | R22: =Table4[[#This Row],[Power EP11]]*2.41 -> 124.93
B23: 1 | L23: 20 | M23: 93.24 | N23: =ROUNDUP(Table4[[#This Row],[Qtd]]/4,0)*192*IF($N$34>1,50,27)/1000 -> 25.92 | O23: =Table4[[#This Row],[Power EP5]]*2.41 -> 62.47 | P23: 186.48 | Q23: =ROUNDUP(Table4[[#This Row],[Qtd]]/4,0)*384*IF($Q$34>1,50,27)/1000 -> 51.84 | R23: =Table4[[#This Row],[Power EP11]]*2.41 -> 124.93
B24: 2 | L24: 21 | M24: =$M$3*L24*0.9 -> 97.90 | N24: =ROUNDUP(Table4[[#This Row],[Qtd]]/4,0)*192*IF($N$34>1,50,27)/1000 -> 31.10 | O24: =Table4[[#This Row],[Power EP5]]*2.41 -> 74.96 | P24: =$P$3*L24*0.9 -> 195.80 | Q24: =ROUNDUP(Table4[[#This Row],[Qtd]]/4,0)*384*IF($Q$34>1,50,27)/1000 -> 62.21 | R24: =Table4[[#This Row],[Power EP11]]*2.41 -> 149.92
B25: 3 | G25: =DIMENSIONAMENTO!C7 -> Bifásica (127/220 V) | H25: =DIMENSIONAMENTO!I26*1000 -> 5056.00 | L25: 22 | M25: 102.56 | N25: =ROUNDUP(Table4[[#This Row],[Qtd]]/4,0)*192*IF($N$34>1,50,27)/1000 -> 31.10 | O25: =Table4[[#This Row],[Power EP5]]*2.41 -> 74.96 | P25: 205.13 | Q25: =ROUNDUP(Table4[[#This Row],[Qtd]]/4,0)*384*IF($Q$34>1,50,27)/1000 -> 62.21 | R25: =Table4[[#This Row],[Power EP11]]*2.41 -> 149.92
B26: 4 | L26: 23 | M26: 107.23 | N26: =ROUNDUP(Table4[[#This Row],[Qtd]]/4,0)*192*IF($N$34>1,50,27)/1000 -> 31.10 | O26: =Table4[[#This Row],[Power EP5]]*2.41 -> 74.96 | P26: 214.45 | Q26: =ROUNDUP(Table4[[#This Row],[Qtd]]/4,0)*384*IF($Q$34>1,50,27)/1000 -> 62.21 | R26: =Table4[[#This Row],[Power EP11]]*2.41 -> 149.92
B27: 5 | G27: Opções de Inversor | L27: 24 | M27: 111.89 | N27: =ROUNDUP(Table4[[#This Row],[Qtd]]/4,0)*192*IF($N$34>1,50,27)/1000 -> 31.10 | O27: =Table4[[#This Row],[Power EP5]]*2.41 -> 74.96 | P27: 223.78 | Q27: =ROUNDUP(Table4[[#This Row],[Qtd]]/4,0)*384*IF($Q$34>1,50,27)/1000 -> 62.21 | R27: =Table4[[#This Row],[Power EP11]]*2.41 -> 149.92
B28: 6 | G28: Monofásica | H28: Bifásica | I28: Tri220 | J28: Tri380 | L28: 25 | M28: 116.55 | N28: =ROUNDUP(Table4[[#This Row],[Qtd]]/4,0)*192*IF($N$34>1,50,27)/1000 -> 36.29 | O28: =Table4[[#This Row],[Power EP5]]*2.41 -> 87.45 | P28: 233.10 | Q28: =ROUNDUP(Table4[[#This Row],[Qtd]]/4,0)*384*IF($Q$34>1,50,27)/1000 -> 72.58 | R28: =Table4[[#This Row],[Power EP11]]*2.41 -> 174.91
B29: 7 | F29: 1 | G29: =E3 -> 5000 | H29: =$E$6*F29 -> 5700 | I29: =$E$9*F29 -> 11500 | J29: =$E$10*F29 -> 20000 | L29: 26 | M29: 121.21 | N29: =ROUNDUP(Table4[[#This Row],[Qtd]]/4,0)*192*IF($N$34>1,50,27)/1000 -> 36.29 | O29: =Table4[[#This Row],[Power EP5]]*2.41 -> 87.45 | P29: 242.42 | Q29: =ROUNDUP(Table4[[#This Row],[Qtd]]/4,0)*384*IF($Q$34>1,50,27)/1000 -> 72.58 | R29: =Table4[[#This Row],[Power EP11]]*2.41 -> 174.91
B30: 8 | F30: 2 | I30: =$E$9*F30 -> 23000 | J30: =$E$10*F30 -> 40000 | L30: 27 | M30: 125.87 | N30: =ROUNDUP(Table4[[#This Row],[Qtd]]/4,0)*192*IF($N$34>1,50,27)/1000 -> 36.29 | O30: =Table4[[#This Row],[Power EP5]]*2.41 -> 87.45 | P30: 251.75 | Q30: =ROUNDUP(Table4[[#This Row],[Qtd]]/4,0)*384*IF($Q$34>1,50,27)/1000 -> 72.58 | R30: =Table4[[#This Row],[Power EP11]]*2.41 -> 174.91
B31: 12 | F31: 3 | L31: 28 | M31: 130.54 | N31: =ROUNDUP(Table4[[#This Row],[Qtd]]/4,0)*192*IF($N$34>1,50,27)/1000 -> 36.29 | O31: =Table4[[#This Row],[Power EP5]]*2.41 -> 87.45 | P31: 261.07 | Q31: =ROUNDUP(Table4[[#This Row],[Qtd]]/4,0)*384*IF($Q$34>1,50,27)/1000 -> 72.58 | R31: =Table4[[#This Row],[Power EP11]]*2.41 -> 174.91
B32: 24 | F32: 4 | L32: 29 | M32: 135.20 | N32: =ROUNDUP(Table4[[#This Row],[Qtd]]/4,0)*192*IF($N$34>1,50,27)/1000 -> 41.47 | O32: =Table4[[#This Row],[Power EP5]]*2.41 -> 99.95 | P32: 270.40 | Q32: =ROUNDUP(Table4[[#This Row],[Qtd]]/4,0)*384*IF($Q$34>1,50,27)/1000 -> 82.94 | R32: =Table4[[#This Row],[Power EP11]]*2.41 -> 199.90
F33: 1 | G33: =E4 -> 7500 | H33: =$E$7*F33 -> 7500 | L33: 30 | M33: 139.86 | N33: =ROUNDUP(Table4[[#This Row],[Qtd]]/4,0)*192*IF($N$34>1,50,27)/1000 -> 41.47 | O33: =Table4[[#This Row],[Power EP5]]*2.41 -> 99.95 | P33: 279.72 | Q33: =ROUNDUP(Table4[[#This Row],[Qtd]]/4,0)*384*IF($Q$34>1,50,27)/1000 -> 82.94 | R33: =Table4[[#This Row],[Power EP11]]*2.41 -> 199.90
F34: 2 | G34: =G$33*$F34 -> 15000 | H34: =$E$7*F34 -> 15000 | L34: Bat/Inv | N34: =RESULTADO!C13/RESULTADO!C10 -> 1.00 | Q34: =RESULTADO!C15/RESULTADO!C10 -> 1.00
B35: AVISOS: | F35: 3 | M35: Qtd total EP5: | N35: =IF(DIMENSIONAMENTO!C6="","",MAX(Dados!M39:M58))*H88 -> 1 | P35: Qtd total EP11: | Q35: =IF(DIMENSIONAMENTO!C6="","",MAX(Dados!P39:P58))*H88 -> 1
B36: NÃO INDICADO | F36: 4 | L36: Potência real: | N36: =N35*M3 -> 5.18 | O36: =N36*2.41 -> 12.48 | Q36: =Q35*P3 -> 10.36 | R36: =Q36*2.41 -> 24.9676
B37: NÃO INDICADO PARA BACKUP/OFF-GRID | F37: 5 | H37: 37500
B38: PARALELISMO APENAS POSSÍVEL COM O FOX HUB (VERIFIQUE COMPATIBILIDADE) | F38: 1 | G38: =E5 -> 10500 | H38: =E8 -> 11400 | I38: =$E$11*F38 -> 17300 | J38: =$E$12*F38 -> 30000 | M38: Battery Qty calc:
B39: PARALELISMO APENAS POSSÍVEL COM A AI LINK | F39: 2 | G39: =G$38*$F39 -> 21000 | H39: =H$38*$F39 -> 22800 | I39: =$E$11*F39 -> 34600 | J39: =$E$12*F39 -> 60000 | M39: =ROUNDUP(RESULTADO!$C$20/Dados!M4,0) -> 1.00 | P39: =ROUNDUP(RESULTADO!$C$20/Dados!P4,0) -> 1.00
B40: PARALELISMO APENAS POSSÍVEL COM A EM BOX | F40: 3 | G40: =$G$38*F40 -> 31500 | H40: =H$38*$F40 -> 34200 | I40: 51900 | J40: 90000 | M40: =ROUNDUP(RESULTADO!$C$20/Dados!M5,0) -> 1.00 | P40: =ROUNDUP(RESULTADO!$C$20/Dados!P5,0) -> 1.00
B41: VERIFIQUE AS TENSÕES NOMINAIS DOS APARELHOS E TIPO DE REDE | F41: 4 | G41: 42000 | H41: 45600 | I41: 69200 | J41: 120000 | M41: =ROUNDUP(RESULTADO!$C$20/Dados!M6,0) -> 1.00 | P41: =ROUNDUP(RESULTADO!$C$20/Dados!P6,0) -> 1.00
B42: PREENCHA O FATOR DE POTÊNCIA DE TODOS OS APARELHOS | F42: 5 | G42: 52500 | H42: 57000 | I42: 86500 | J42: 150000 | M42: =ROUNDUP(RESULTADO!$C$20/Dados!M7,0) -> 1.00 | P42: =ROUNDUP(RESULTADO!$C$20/Dados!P7,0) -> 1.00
B43: PREENCHA A CORRENTE DE PICO (Ip/In) DE TODOS OS APARELHOS | F43: 6 | G43: 63000 | H43: 68400 | I43: 103800 | J43: 180000 | M43: =ROUNDUP(RESULTADO!$C$20/Dados!M8,0) -> 1.00 | P43: =ROUNDUP(RESULTADO!$C$20/Dados!P8,0) -> 1.00
B44: PREENCHA A TENSÃO NOMINAL DE TODOS OS APARELHOS | F44: 7 | G44: 73500 | H44: 79800 | I44: 121100 | J44: 210000 | M44: =ROUNDUP(RESULTADO!$C$20/Dados!M9,0) -> 1.00 | P44: =ROUNDUP(RESULTADO!$C$20/Dados!P9,0) -> 1.00
B45: MÁXIMO DE 4 BATERIAS POR INVERSOR, UTILIZE BATERIAS EP11 | E45: " AND(B10<>Dados!D9,B10<>Dados!D10,B10<>Dados!D11,B10<>Dados!D12,Dados!M59/C10>4,C15/C10<5),Dados!B45," | F45: 8 | G45: 84000 | H45: 91200 | I45: 138400 | J45: 240000 | M45: =ROUNDUP(RESULTADO!$C$20/Dados!M10,0) -> 1.00 | P45: =ROUNDUP(RESULTADO!$C$20/Dados!P10,0) -> 1.00
B46: MÁXIMO DE 4 BATERIAS POR INVERSOR, AUMENTE MANUALMENTE A QUANTIDADE DE INVERSORES | F46: 9 | G46: 94500 | H46: 102600 | I46: 155700 | J46: 270000 | M46: =ROUNDUP(RESULTADO!$C$20/Dados!M11,0) -> 1.00 | P46: =ROUNDUP(RESULTADO!$C$20/Dados!P11,0) -> 1.00
B47: MÁXIMO DE 8 BATERIAS POR INVERSOR, AUMENTE MANUALMENTE A QUANTIDADE DE INVERSORES | F47: 10 | G47: 105000 | H47: 114000 | I47: 173000 | J47: 300000 | M47: =ROUNDUP(RESULTADO!$C$20/Dados!M12,0) -> 1.00 | P47: =ROUNDUP(RESULTADO!$C$20/Dados!P12,0) -> 1.00
B48: JUNCTION BOX OBRIGATÓRIA APENAS EM CASO DE USO DA BATERIA EP5 | M48: =ROUNDUP(RESULTADO!$C$20/Dados!M13,0) -> 1.00 | P48: =ROUNDUP(RESULTADO!$C$20/Dados!P13,0) -> 1.00
B49: POTÊNCIA DAS BATERIAS INSUFICIENTE NO MODO OFF-GRID, CONSIDERE MAIS BATERIAS (AUMENTANDO A AUTONOMIA) OU OUTRAS FONTES DE ENERGIA (EX. FOTOVOLTAICO) | F49: Mínimo viável: | G49: =MIN(IF(G29:G47>=$H$25,G29:G47)) -> 7500 | H49: =MIN(IF(H29:H47>=$H$25,H29:H47)) -> 5700 | I49: =MIN(IF(I29:I47>=$H$25,I29:I47)) -> 11500 | J49: =MIN(IF(J29:J47>=$H$25,J29:J47)) -> 20000 | M49: =ROUNDUP(RESULTADO!$C$20/Dados!M14,0) -> 1.00 | P49: =ROUNDUP(RESULTADO!$C$20/Dados!P14,0) -> 1.00
B50: POTÊNCIA DAS BATERIAS EP5 INSUFICIENTE NO MODO OFF-GRID, CONSIDERE MAIS BATERIAS (AUMENTANDO A AUTONOMIA), OUTRAS FONTES DE ENERGIA (EX. FOTOVOLTAICO), OU UTILIZE A EP11 | F50: Linha: | G50: =MAX(IF(G29:G47=MIN(IF(G29:G47>=$H$25, G29:G47)), ROW(G29:G47))) -> 33 | H50: =MAX(IF(H29:H47=MIN(IF(H29:H47>=$H$25, H29:H47)), ROW(H29:H47))) -> 29 | I50: =MAX(IF(I29:I47=MIN(IF(I29:I47>=$H$25, I29:I47)), ROW(I29:I47))) -> 29 | J50: =MAX(IF(J29:J47=MIN(IF(J29:J47>=$H$25, J29:J47)), ROW(J29:J47))) -> 29 | M50: =ROUNDUP(RESULTADO!$C$20/Dados!M15,0) -> 1.00 | P50: =ROUNDUP(RESULTADO!$C$20/Dados!P15,0) -> 1.00
B51: REDUZA A POTÊNCIA DE PICO, PARA REDUZIR O SISTEMA | F51: Modelo: | G51: =_xlfn.IFS(G50<33,D3,G50<38,D4,G50<48,D5) -> KH7.5 | H51: =_xlfn.IFS(H50<33,D6,H50<38,D7,H50<48,D8) -> H1-5.7-US | I51: =_xlfn.IFS(I50<38,D9,I50<48,D11) -> H3-PRO-11.5 | J51: =_xlfn.IFS(J50<38,D10,J50<48,D12) -> H3-PRO-20.0 | M51: =ROUNDUP(RESULTADO!$C$20/Dados!M16,0) -> 1.00 | P51: =ROUNDUP(RESULTADO!$C$20/Dados!P16,0) -> 1.00
B52: EM CASO DE BATERIAS EP5, CONSIDERE 2 JUNCTION BOX | F52: Quantidade: | G52: =ROUNDUP(G49/VLOOKUP(G51,Products[#All],2,0),0) -> 1 | H52: =ROUNDUP(H49/VLOOKUP(H51,Products[#All],2,0),0) -> 1 | I52: =ROUNDUP(I49/VLOOKUP(I51,Products[#All],2,0),0) -> 1 | J52: =ROUNDUP(J49/VLOOKUP(J51,Products[#All],2,0),0) -> 1 | M52: =ROUNDUP(RESULTADO!$C$20/Dados!M17,0) -> 1.00 | P52: =ROUNDUP(RESULTADO!$C$20/Dados!P17,0) -> 1.00
M53: =ROUNDUP(RESULTADO!$C$20/Dados!M18,0) -> 1.00 | P53: =ROUNDUP(RESULTADO!$C$20/Dados!P18,0) -> 1.00
M54: =ROUNDUP(RESULTADO!$C$20/Dados!M19,0) -> 1.00 | P54: =ROUNDUP(RESULTADO!$C$20/Dados!P19,0) -> 1.00
G55: CÁLCULO DE PICO | H55: =DIMENSIONAMENTO!J26*1000 -> 5056.00 | M55: =ROUNDUP(RESULTADO!$C$20/Dados!M20,0) -> 1.00 | P55: =ROUNDUP(RESULTADO!$C$20/Dados!P20,0) -> 1.00
G56: Monofásica | H56: Bifásica | I56: Tri220 | J56: Tri380 | M56: =ROUNDUP(RESULTADO!$C$20/Dados!M21,0) -> 1.00 | P56: =ROUNDUP(RESULTADO!$C$20/Dados!P21,0) -> 1.00
F57: 1 | G57: =G3 -> 5500 | H57: =$G$6*F57 -> 7695 | I57: =G$9*F57 -> 12600 | J57: =$G$10*F57 -> 24000 | M57: =ROUNDUP(RESULTADO!$C$20/Dados!M22,0) -> 1.00 | P57: =ROUNDUP(RESULTADO!$C$20/Dados!P22,0) -> 1.00
F58: 2 | I58: =G$9*F58 -> 25200 | J58: =$G$10*F58 -> 48000 | M58: =ROUNDUP(RESULTADO!$C$20/Dados!M23,0) -> 1.00 | P58: =ROUNDUP(RESULTADO!$C$20/Dados!P23,0) -> 1.00
F59: 3 | M59: =MIN( MAX(MAX(M39:M58), H88), 5*H88-0.000000001 ) -> 1.00 | P59: =MIN( MAX(MAX(P39:P58), H88), 5*H88-0.000000001 ) -> 1.00
F60: 4
F61: 1 | G61: =G4 -> 10000 | H61: =$G$7*F61 -> 10125
F62: 2 | G62: =G$4*$F62 -> 20000 | H62: =$G$7*F62 -> 20250
F63: 3
F64: 4
F65: 5
F66: 1 | G66: =G5 -> 15000 | H66: =$G$8*F66 -> 15389 | I66: =$G$11*F66 -> 19000 | J66: =$G$12*F66 -> 36000
F67: 2 | G67: =G$5*$F67 -> 30000 | H67: =$G$8*F67 -> 30778 | I67: =$G$11*F67 -> 38000 | J67: =$G$12*F67 -> 72000
F68: 3 | G68: =G$5*$F68 -> 45000 | H68: 46167 | I68: 57000 | J68: 108000
F69: 4 | G69: 60000 | H69: 61556 | I69: 76000 | J69: 144000
F70: 5 | G70: 75000 | H70: 76945 | I70: 95000 | J70: 180000
F71: 6 | G71: 90000 | H71: 92334 | I71: 114000 | J71: 216000
F72: 7 | G72: 105000 | H72: 107723 | I72: 133000 | J72: 252000
F73: 8 | G73: 120000 | H73: 123112 | I73: 152000 | J73: 288000
F74: 9 | G74: 135000 | H74: 138501 | I74: 171000 | J74: 324000
F75: 10 | G75: 150000 | H75: 153890 | I75: 190000 | J75: 360000
F77: Mínimo viável: | G77: =MIN(IF(G57:G75>=$H$55,G57:G75)) -> 5500 | H77: =MIN(IF(H57:H75>=$H$55,H57:H75)) -> 7695 | I77: =MIN(IF(I57:I75>=$H$55,I57:I75)) -> 12600 | J77: =MIN(IF(J57:J75>=$H$55,J57:J75)) -> 24000
F78: Linha: | G78: =MAX(IF(G57:G75=MIN(IF(G57:G75>=$H$25, G57:G75)), ROW(G57:G75))) -> 57 | H78: =MAX(IF(H57:H75=MIN(IF(H57:H75>=$H$25, H57:H75)), ROW(H57:H75))) -> 57 | I78: =MAX(IF(I57:I75=MIN(IF(I57:I75>=$H$25, I57:I75)), ROW(I57:I75))) -> 57 | J78: =MAX(IF(J57:J75=MIN(IF(J57:J75>=$H$25, J57:J75)), ROW(J57:J75))) -> 57
F79: Modelo: | G79: =_xlfn.IFS(G78<61,D3,G78<66,D4,G78<76,D5) -> H1-5.0-E-G2 | H79: =_xlfn.IFS(H78<61,D6,H78<66,D7,H78<76,D8) -> H1-5.7-US | I79: =_xlfn.IFS(I78<61,D9,I78<76,D11) -> H3-PRO-11.5 | J79: =_xlfn.IFS(J78<61,D10,J78<76,D12) -> H3-PRO-20.0
F80: Quantidade: | G80: =ROUNDUP(G77/VLOOKUP(G79,Products[#All],4,0),0) -> 1 | H80: =ROUNDUP(H77/VLOOKUP(H79,Products[#All],4,0),0) -> 1 | I80: =ROUNDUP(I77/VLOOKUP(I79,Products[#All],4,0),0) -> 1 | J80: =ROUNDUP(J77/VLOOKUP(J79,Products[#All],4,0),0) -> 1
G84: Check Pico:
F85: Pelo Nominal: | G85: =_xlfn.IFS(DIMENSIONAMENTO!C7=Dados!B8,Dados!G51,DIMENSIONAMENTO!C7=Dados!B9,Dados!H51,DIMENSIONAMENTO!C7=Dados!B10,Dados!J51,DIMENSIONAMENTO!C7=Dados!B11,Dados!I51) -> H1-5.7-US | H85: =_xlfn.IFS(DIMENSIONAMENTO!C7=Dados!B8,Dados!G52,DIMENSIONAMENTO!C7=Dados!B9,Dados!H52,DIMENSIONAMENTO!C7=Dados!B10,Dados!J52,DIMENSIONAMENTO!C7=Dados!B11,Dados!I52) -> 1
F86: Pelo Pico: | G86: =_xlfn.IFS(DIMENSIONAMENTO!C7=Dados!B8,G79,DIMENSIONAMENTO!C7=Dados!B9,Dados!H79,DIMENSIONAMENTO!C7=Dados!B10,Dados!J79,DIMENSIONAMENTO!C7=Dados!B11,Dados!I79) -> H1-5.7-US | H86: =_xlfn.IFS(DIMENSIONAMENTO!C7=Dados!B8,Dados!G80,DIMENSIONAMENTO!C7=Dados!B9,Dados!H80,DIMENSIONAMENTO!C7=Dados!B10,Dados!J80,DIMENSIONAMENTO!C7=Dados!B11,Dados!I80) -> 1 | J86: =MAX(VLOOKUP(G85,Products[#All],4,0),VLOOKUP(G86,Products[#All],4,0)) -> 7695
F88: Final: | G88: =IF(VLOOKUP(G85,Products[#All],4,0)*H85>H55,G85,G86) -> H1-5.7-US | H88: =MAX(H85:H86) -> 1

Sheet RESULTADO
B1: CALCULADORA BACKUP FOX ESS
E6: AVISOS: | I6: =VLOOKUP(B10,Dados!D2:J12,5,0) -> 
B7: Lista de Produtos | E7: =_xlfn.IFNA( _xlfn.IFS( AND(OR(B10=Dados!D9,B10=Dados!D10,B10=Dados!D11,B10=Dados!D12),(Dados!M59/RESULTADO!C10)>8),Dados!B47, AND(OR(B10=Dados!D3,B10=Dados!D4,B10=Dados!D5,B10=Dados!D6,B10=Dados!D7,B10=Dados!D8),(Dados!P59/RESULTADO!C10)>4),Dados!B46, AND(AND(B10<>Dados!D9,B10<>Dados!D10,B10<>Dados!D11,B10<>Dados!D12),C15/C10<2,Dados!M59/C10>1,C13<>""),Dados!B48, AND(OR(B10=Dados!D9,B10=Dados!D10,B10=Dados!D11,B1=Dados!D12),C15/C10<3,Dados!M59/C10>2,C13<>""),Dados!B48, AND(OR(B10=Dados!D9,B10=Dados!D10,B10=Dados!D11,B1=Dados!D12),C15<5,C13>5,C13<>""),Dados!B52 ), "" ) ->  | M7: =IFERROR(_xlfn.IFS(E8=Dados!B38,Dados!J20,E8=Dados!B39,Dados!J18),"") -> 
B8: Modelo | C8: Quantidade | E8: =_xlfn.IFS(C10>10,Dados!B36,C10<2,"",C10>4,Dados!B37,B10=Dados!D6,Dados!B38,B10=Dados!D7,Dados!B38,B10=Dados!D8,Dados!B38,B10=Dados!D9,Dados!B39,B10=Dados!D11,Dados!B39,B10=Dados!D10,Dados!B39,B10=Dados!D12,Dados!B39,B10=Dados!D3,"",B10=Dados!D4,"",B10=Dados!D5,"") ->  | K8: =IF(M7="","","+") -> 
B10: =Dados!G88 -> H1-5.7-US | C10: =Dados!H88 -> 1 | E10: =_xlfn.IFS( COUNTBLANK(DIMENSIONAMENTO!H8:H24)>0, Dados!B43, COUNTBLANK(DIMENSIONAMENTO!D8:D24)>0, Dados!B44, COUNTBLANK(DIMENSIONAMENTO!G8:G24)>0, Dados!B42, OR( AND(DIMENSIONAMENTO!C7=Dados!B8, OR(COUNTIF(Equipmentos[Tensão Nominal '[V']],127)>0, COUNTIF(Equipmentos[Tensão Nominal '[V']],380)>0)), AND(DIMENSIONAMENTO!C7=Dados!B9, COUNTIF(Equipmentos[Tensão Nominal '[V']],380)>0), AND(DIMENSIONAMENTO!C7=Dados!B10, COUNTIF(Equipmentos[Tensão Nominal '[V']],127)>0), AND(DIMENSIONAMENTO!C7=Dados!B11, COUNTIF(Equipmentos[Tensão Nominal '[V']],380)>0) ), Dados!B41, TRUE, "" ) -> 
B11: =_xlfn.IFNA( _xlfn.IFS( AND(B10<>Dados!D3,B10<>Dados!D4,B10<>Dados!D5,B10<>Dados!D6,B10<>Dados!D7,B10<>Dados!D8,Dados!M59<3),"", AND(B10<>Dados!D3,B10<>Dados!D4,B10<>Dados!D5,B10<>Dados!D6,B10<>Dados!D7,B10<>Dados!D8,Dados!M59<6),Dados!D17, AND(OR(B10=Dados!D3,B10=Dados!D4,B10=Dados!D5,B10=Dados!D6,B10=Dados!D7,B10=Dados!D8),C15/C10>1),Dados!D17, AND(OR(B10=Dados!D3,B10=Dados!D4,B10=Dados!D5,B10=Dados!D6,B10=Dados!D7,B10=Dados!D8),Dados!M59/C10>1),Dados!D17, C13<=1,""),"") ->  | C11: =IFERROR( IF( B11="HV Junction-Box", IF( OR(B10=Dados!D3,B10=Dados!D4,B10=Dados!D5,B10=Dados!D6,B10=Dados!D7,B10=Dados!D8), C10, IF(AND(Dados!P59<6,Dados!P59>2),1,ROUNDUP(C15/4,0)*C10) ), "" ), "" ) -> 
B12: =IFERROR(_xlfn.IFS(E8=Dados!B38,Dados!D20,E8=Dados!B39,Dados!D18),"") ->  | C12: =IF(B12="","","1.00") ->  | E12: DICAS: | J12: =IF(C11="","",Dados!J17) -> 
B13: =IF( OR( Dados!M59*Dados!M4<C20, AND(COUNTIF(Dados!D9:D12,B10)=0, Dados!M59/C10>4), AND(COUNTIF(Dados!D9:D12,B10)>0, Dados!M59/C10>8) ), "", Dados!D15 ) -> EP5 | C13: =IF(B13="","",ROUNDUP(Dados!M59/Dados!H88,0)*Dados!H88) -> 1 | E13: =_xlfn.IFNA(_xlfn.IFS(C18>=F22,Dados!B49, C18>=F18,Dados!B50, OR(Dados!H88>Dados!H85,Dados!G88<>Dados!G85),Dados!B51),"") -> 
B14: =IF(B13<>"","OU","") -> OU
B15: =Dados!D16 -> EP11 | C15: =ROUNDUP(Dados!P59/Dados!H88,0)*Dados!H88 -> 1 | I15: =IF(B13="","",Dados!J15) ->  | M15: =VLOOKUP(B15,Products8[#All],7,) -> 
E16: Potência Alcançada (Inversor) [kW] | F16: =IFERROR(VLOOKUP(B10,Products[#All],MATCH(Products[[#Headers],[Max Power EPS '[W']]],Products[#Headers],0),FALSE)*C10/1000,"") -> 5.70
K17: =B14 -> OU
B18: Potência Necessária (kW) | C18: =DIMENSIONAMENTO!I26 -> 5.06 | E18: Potência Alcançada EP5 [kW] | F18: =IF(C13="","",Dados!N36) -> 5.18
B19: Autonomia Desejada [h] | C19: =DIMENSIONAMENTO!C6 -> 2 | E19: Autonomia Alcançada (EP5 - plena carga) [h] | F19: =IF(C13="","",F20*C19/C20) -> 2.93
B20: Capacidade Necessária (kWh) | C20: =IF(DIMENSIONAMENTO!K26=0,"",DIMENSIONAMENTO!K26/24*DIMENSIONAMENTO!C6) -> 3.19 | E20: Capacidade Alcançada (EP5) [kWh] | F20: =IF(C13="","",C13*Dados!M4) -> 4.66
E22: Potência Alcançada EP11 [kW] | F22: =Dados!Q36 -> 10.36
E23: Autonomia Alcançada (EP11 - plena carga) [h] | F23: =F24*C19/C20 -> 5.85
E24: Capacidade Alcançada (EP11) [kWh] | F24: =C15*Dados!P4 -> 9.32
